bitfinex-derivatives/quotes_BTCF0:USTF0_20240824
["timestamp","ask_amount","ask_price","bid_price","bid_amount"]
[1724513328474,0.416864,64054.0,64053.0,0.0203476]
[1724513328685,0.417864,64054.0,64053.0,0.0203476]
[1724513328984,0.417864,64054.0,64053.0,0.48356574]
[1724513328985,0.00104,64054.0,64053.0,0.48356574]
[1724513329175,0.00104,64054.0,64053.0,0.4591726]
[1724513329379,0.00104,64054.0,64053.0,0.48356366]
[1724513329782,0.00104,64054.0,64053.0,0.53021642]
[1724513329988,0.00104,64054.0,64053.0,0.48356366]
[1724513330387,0.00204,64054.0,64053.0,0.48956366]
[1724513330781,0.36284,64054.0,64053.0,0.12876366]
[1724513330982,0.00204,64054.0,64053.0,0.12876366]
[1724513331398,0.00204,64054.0,64053.0,0.12876473]
[1724513331779,0.00204,64054.0,64053.0,0.1043726]
[1724513331979,0.00204,64054.0,64053.0,0.48956389]
[1724513332185,0.00204,64054.0,64053.0,0.53621665]
[1724513332388,0.00204,64054.0,64053.0,0.4651726]
[1724513332587,0.00204,64054.0,64053.0,0.48956315]
[1724513332786,0.00204,64054.0,64053.0,0.53617411]
[1724513332989,0.00204,64054.0,64053.0,0.51178356]
[1724513333388,0.00204,64054.0,64053.0,0.4651726]
[1724513333894,0.00204,64054.0,64053.0,0.48956308]
[1724513334885,0.00204,64054.0,64053.0,0.4651726]
[1724513337191,0.00204,64054.0,64053.0,0.3871476]
[1724513337398,1.890024,64054.0,64053.0,0.00618362]
[1724513337688,1.490024,64054.0,64053.0,0.00618362]
[1724513337893,1.890024,64054.0,64053.0,0.00618362]
[1724513338098,1.490024,64054.0,64053.0,0.00618362]
[1724513338498,1.021664,64054.0,64053.0,0.00618362]
[1724513338699,1.020664,64054.0,64053.0,0.00618362]
[1724513338900,1.021664,64054.0,64053.0,0.00618362]
[1724513339593,0.801664,64054.0,64053.0,0.00618362]
[1724513340492,0.440864,64054.0,64053.0,0.00618362]
[1724513344406,0.518888,64054.0,64053.0,0.00618362]
[1724513344609,1.387248,64054.0,64053.0,0.00618362]
[1724513344806,0.078031,64048.0,64047.0,0.00023409]
[1724513345000,0.438831,64048.0,64047.0,0.00023409]
[1724513345595,0.438871,64048.0,64047.0,0.00023409]
[1724513345800,0.43903381,64048.0,64047.0,0.00023409]
[1724513346002,0.44003381,64048.0,64047.0,0.00023409]
[1724513347599,0.44103381,64048.0,64047.0,0.00023409]
[1724513348301,0.44003381,64048.0,64047.0,0.00023409]
[1724513348503,0.44103381,64048.0,64047.0,0.00023409]
[1724513355017,0.40955208,64048.0,64040.0,0.04661096]
[1724513355214,0.5808,64041.0,64019.0,0.04669014]
[1724513355516,0.3608,64022.0,64017.0,0.09299014]
[1724513355716,0.00012591,64021.0,64017.0,0.09299014]
[1724513355918,0.00012591,64021.0,64019.0,0.04669014]
[1724513356218,1e-08,64021.0,64020.0,0.06224672]
[1724513356418,1e-08,64021.0,64019.0,0.078066]
[1724513357314,4e-05,64020.0,64019.0,0.078066]
[1724513357716,4e-05,64020.0,64019.0,0.12470396]
[1724513358220,4e-05,64020.0,64019.0,0.078066]
[1724513358721,0.00100001,64021.0,64019.0,0.946666]
[1724513358912,0.0002343,64026.0,64024.0,0.078059]
[1724513359113,0.0002343,64026.0,64025.0,0.046]
[1724513359811,0.00029241,64026.0,64025.0,0.046]
[1724513360614,0.00129241,64026.0,64025.0,0.046]
[1724513361530,0.00229241,64026.0,64025.0,0.046]
[1724513364226,0.00229241,64026.0,64025.0,0.124059]
[1724513365734,0.00229241,64026.0,64025.0,0.046]
[1724513365921,0.08035041,64026.0,64025.0,0.046]
[1724513373027,0.08035041,64026.0,64025.0,0.0958]
[1724513373231,0.08035041,64026.0,64025.0,0.173859]
[1724513378547,0.08035041,64026.0,64025.0,0.22048137]
[1724513379548,0.00229241,64026.0,64025.0,0.173859]
[1724513379741,0.00229241,64026.0,64025.0,0.19826161]
[1724513380137,0.00229241,64026.0,64025.0,0.26050833]
[1724513380347,0.00229241,64026.0,64025.0,0.23610572]
[1724513380546,0.00229241,64026.0,64025.0,0.26050723]
[1724513381335,0.00229241,64026.0,64025.0,0.19826051]
[1724513381541,0.00229241,64026.0,64018.0,0.04673546]
[1724513381542,0.078066,64019.0,64018.0,0.04673546]
[1724513381749,0.078068,64018.0,64016.0,0.06392042]
[1724513382049,0.5808,64019.0,64016.0,0.01718496]
[1724513382050,0.3618,64019.0,64016.0,0.01718496]
[1724513382249,0.04655334,64017.0,64016.0,0.01718496]
[1724513382443,0.04655334,64020.0,64016.0,0.07952188]
[1724513382642,0.04655334,64021.0,64019.0,0.04675766]
[1724513383251,0.12461834,64021.0,64019.0,0.04675766]
[1724513383546,0.078066,64019.0,64016.0,0.07952188]
[1724513383740,0.12464051,64019.0,64016.0,0.07952188]
[1724513383941,0.078066,64019.0,64016.0,0.07952188]
[1724513384342,0.04657451,64018.0,64016.0,0.07952188]
[1724513384539,0.04657451,64018.0,64017.0,0.06233692]
[1724513386046,0.04657451,64018.0,64016.0,0.07952188]
[1724513386047,0.001,64018.0,64016.0,0.07952188]
[1724513387046,0.002,64018.0,64016.0,0.07952188]
[1724513387242,0.04857451,64018.0,64017.0,0.06233692]
[1724513387444,0.04857451,64018.0,64016.0,0.07952188]
[1724513388055,0.002,64018.0,64016.0,0.15759188]
[1724513388748,0.001,64018.0,64016.0,0.15759188]
[1724513388942,0.002,64018.0,64016.0,0.15759188]
[1724513389148,0.002,64018.0,64017.0,0.04677486]
[1724513389548,0.002,64018.0,64016.0,0.14202982]
[1724513389744,0.080067,64018.0,64017.0,0.04677486]
[1724513390651,0.080067,64018.0,64016.0,0.01718496]
[1724513390652,0.078069,64017.0,64016.0,0.06395982]
[1724513391351,0.078109,64017.0,64016.0,0.06394779]
[1724513391848,0.078109,64017.0,64016.0,0.01718496]
[1724513392252,0.079109,64017.0,64016.0,0.01718496]
[1724513392453,0.080109,64017.0,64016.0,0.01718496]
[1724513393660,0.080109,64017.0,64016.0,0.04159139]
[1724513393850,0.080109,64017.0,64016.0,0.01718496]
[1724513394159,0.080109,64017.0,64016.0,0.0415914]
[1724513396364,0.00204,64017.0,64016.0,0.1196614]
[1724513396659,0.170109,64017.0,64016.0,0.1196614]
[1724513397046,0.09204,64017.0,64016.0,0.1196614]
[1724513397247,0.09204,64017.0,64016.0,0.16641797]
[1724513397447,0.09204,64017.0,64016.0,0.08834797]
[1724513398051,0.09204,64017.0,64016.0,0.0415914]
[1724513398558,0.56068,64017.0,64016.0,0.0415914]
[1724513398751,0.09204,64017.0,64016.0,0.0415914]
[1724513400361,0.09204,64017.0,64016.0,0.1196614]
[1724513402150,0.09204,64017.0,64016.0,0.09525496]
[1724513402350,0.09204,64017.0,64016.0,0.11966071]
[1724513403162,0.09204,64017.0,64016.0,0.16706071]
[1724513403360,0.00204,64017.0,64016.0,0.23498527]
[1724513403954,0.09204,64017.0,64016.0,0.18658527]
[1724513404161,0.09204,64017.0,64016.0,0.20153135]
[1724513404570,0.09204,64017.0,64016.0,0.13918527]
[1724513405064,0.09204,64017.0,64016.0,0.11966071]
[1724513406352,0.09204,64017.0,64016.0,0.18200679]
[1724513406563,0.00204,64017.0,64016.0,0.18200679]
[1724513407864,0.00204,64017.0,64016.0,0.11966071]
[1724513408065,0.00204,64017.0,64016.0,0.11966015]
[1724513411470,0.04861451,64017.0,64016.0,0.31007333]
[1724513411670,0.04861451,64017.0,64016.0,0.31007277]
[1724513412171,0.04861451,64017.0,64016.0,0.19771506]
[1724513412172,0.00204,64017.0,64016.0,0.19771506]
[1724513412964,0.00204,64017.0,64016.0,0.17331043]
[1724513413165,0.00204,64017.0,64016.0,0.19771506]
[1724513413467,0.06205736,64024.0,64020.0,0.078065]
[1724513413674,0.00029241,64026.0,64025.0,0.078059]
[1724513413976,0.00029241,64026.0,64025.0,0.10246363]
[1724513414164,0.04690327,64026.0,64025.0,0.10246363]
[1724513414377,0.00029241,64026.0,64025.0,0.10246363]
[1724513414872,0.04690372,64026.0,64025.0,0.46326363]
[1724513415068,0.00029241,64026.0,64025.0,0.46326363]
[1724513415573,0.00129241,64026.0,64025.0,0.46326363]
[1724513415780,0.00129241,64026.0,64025.0,0.65176743]
[1724513415964,0.00229241,64026.0,64025.0,0.65176743]
[1724513416162,0.00229241,64026.0,64025.0,0.54130946]
[1724513416360,0.00229241,64026.0,64025.0,0.66563293]
[1724513416566,0.00229241,64026.0,64025.0,0.74369193]
[1724513416766,0.00229241,64026.0,64025.0,0.6656461]
[1724513417774,0.00229241,64026.0,64025.0,1.5342061]
[1724513418565,0.04661131,64040.0,64039.0,0.078042]
[1724513418771,0.04661131,64041.0,64039.0,0.02440463]
[1724513419077,0.3608,64042.0,64041.0,0.078039]
[1724513419078,0.40733159,64042.0,64041.0,0.078039]
[1724513419278,0.40733159,64042.0,64032.0,0.06228594]
[1724513419279,1.3416,64042.0,64032.0,0.01261724]
[1724513419473,0.65833292,64033.0,64031.0,0.0002343]
[1724513419668,1.21683478,64032.0,64012.0,0.04670684]
[1724513419872,0.22,64021.0,64013.0,0.04670684]
[1724513420169,0.22,64021.0,64014.0,0.01383452]
[1724513420371,4e-05,64017.0,64014.0,0.01383452]
[1724513422073,4e-05,64017.0,64014.0,0.06054136]
[1724513422273,0.00204,64017.0,64016.0,0.00219376]
[1724513423989,0.00204,64017.0,64016.0,0.0489006]
[1724513424172,0.87068,64017.0,64016.0,0.00219376]
[1724513424482,0.04855494,64017.0,64016.0,0.00219376]
[1724513425277,0.00204,64017.0,64016.0,0.00219376]
[1724513426884,0.87068,64017.0,64016.0,0.00219376]
[1724513427077,0.47068,64017.0,64016.0,0.00219376]
[1724513427875,0.548749,64017.0,64016.0,0.00219376]
[1724513428789,0.948749,64017.0,64016.0,0.00219376]
[1724513429190,0.548749,64017.0,64016.0,0.00219376]
[1724513431289,0.548749,64017.0,64016.0,0.02660261]
[1724513431981,0.548749,64017.0,64016.0,0.00219376]
[1724513432190,0.59523549,64017.0,64016.0,0.00219376]
[1724513432586,0.080109,64017.0,64016.0,0.00219376]
[1724513434588,0.548749,64017.0,64016.0,0.00219376]
[1724513436197,0.909549,64017.0,64016.0,0.00219376]
[1724513436593,0.440909,64017.0,64016.0,0.00219376]
[1724513437190,0.48738594,64017.0,64016.0,0.02660225]
[1724513437691,0.440909,64017.0,64016.0,0.00219376]
[1724513439799,0.48737908,64017.0,64016.0,0.00219376]
[1724513440505,0.440909,64017.0,64016.0,0.00219376]
[1724513442099,0.518978,64017.0,64016.0,0.00219376]
[1724513443102,0.56544808,64017.0,64016.0,0.00219376]
[1724513443702,0.518978,64017.0,64016.0,0.00219376]
[1724513444208,0.83148,64017.0,64006.0,0.04670684]
[1724513444501,0.3608,64007.0,64001.0,0.0945]
[1724513444694,0.298086,64003.0,64002.0,0.02441212]
[1724513445400,0.29823976,64003.0,64002.0,0.02441212]
[1724513447299,0.29923976,64003.0,64002.0,0.02441212]
[1724513447714,0.30023976,64003.0,64002.0,0.02441212]
[1724513448098,0.30023976,64003.0,64002.0,0.07111896]
[1724513448300,0.30023976,64003.0,64002.0,0.02441212]
[1724513448698,0.30023976,64003.0,64002.0,0.07115126]
[1724513449098,0.34670744,64003.0,64002.0,0.02441212]
[1724513449494,0.34670744,64003.0,64001.0,0.1085191]
[1724513450002,0.30023976,64003.0,64002.0,0.02441259]
[1724513450201,0.34670744,64003.0,64002.0,0.02441259]
[1724513450398,0.21670744,64003.0,64002.0,0.02441259]
[1724513450804,0.23225968,64003.0,64002.0,0.02441259]
[1724513451099,0.078087,64002.0,64001.0,0.0945]
[1724513452108,0.078087,64002.0,64001.0,0.14128077]
[1724513452508,0.078127,64002.0,64001.0,0.14128077]
[1724513453202,0.078127,64002.0,64001.0,0.0945]
[1724513453703,0.079127,64002.0,64001.0,0.0945]
[1724513454106,0.00204,64002.0,64001.0,0.0945]
[1724513454406,0.00204,64002.0,64001.0,0.172588]
[1724513455701,0.00104,64002.0,64001.0,0.172588]
[1724513455902,0.00204,64002.0,64001.0,0.172588]
[1724513456295,0.00104,64002.0,64001.0,0.172588]
[1724513456501,0.00204,64002.0,64001.0,0.172588]
[1724513456900,0.00104,64002.0,64000.0,0.06066431]
[1724513457098,0.00204,64002.0,64001.0,0.221688]
[1724513458707,0.00104,64002.0,64001.0,0.221688]
[1724513458899,0.00204,64002.0,64001.0,0.221688]
[1724513459500,0.00104,64002.0,64001.0,0.221688]
[1724513459705,0.00204,64002.0,64001.0,0.221688]
[1724513460007,0.09204,64002.0,64001.0,0.221688]
[1724513461412,0.170127,64002.0,64001.0,0.221688]
[1724513461707,0.170127,64002.0,63997.0,0.04678077]
[1724513461912,0.078102,63990.0,63985.0,0.04675666]
[1724513462110,0.078123,63972.0,63971.0,0.04675666]
[1724513462311,2.5916,63972.0,63966.0,0.0977]
[1724513462607,0.09,63967.0,63965.0,0.0077238]
[1724513462807,0.3608,63966.0,63961.0,0.06259484]
[1724513463011,0.4508,63962.0,63961.0,0.06259484]
[1724513463205,0.3608,63962.0,63961.0,0.06259484]
[1724513463407,0.4508,63962.0,63961.0,0.06259484]
[1724513463607,0.45084,63962.0,63961.0,0.09471534]
[1724513464214,0.45084,63962.0,63961.0,0.08702123]
[1724513464522,0.36084,63962.0,63961.0,0.08702123]
[1724513465410,0.36284,63962.0,63961.0,0.08702123]
[1724513466219,0.36284,63962.0,63961.0,0.08701954]
[1724513466412,0.36284,63962.0,63961.0,0.06259484]
[1724513467612,0.00204,63962.0,63961.0,0.06259484]
[1724513468209,0.00204,63962.0,63961.0,0.93163484]
[1724513469117,0.00204,63962.0,63961.0,0.53163484]
[1724513470514,0.00204,63962.0,63961.0,0.93163484]
[1724513471513,0.00018935,63965.0,63964.0,0.078133]
[1724513471712,0.3608,63968.0,63967.0,0.07813]
[1724513472119,0.3608,63968.0,63967.0,0.94713]
[1724513472413,0.0002343,63978.0,63967.0,1.2298]
[1724513472722,0.0002343,63978.0,63977.0,0.078117]
[1724513472923,0.00037789,63978.0,63977.0,0.078117]
[1724513473422,0.00037789,63978.0,63977.0,0.547037]
[1724513473624,0.00137789,63978.0,63977.0,0.547037]
[1724513473922,0.00237789,63978.0,63977.0,0.547037]
[1724513474118,0.22,63991.0,63987.0,0.078105]
[1724513474321,0.22,63991.0,63983.0,0.3608]
[1724513474619,0.44009801,63993.0,63983.0,0.3608]
[1724513474817,0.438898,63993.0,63983.0,0.3608]
[1724513475023,0.3608,63993.0,63984.0,0.0472]
[1724513475317,0.3608,63993.0,63989.0,0.078102]
[1724513475520,0.3608,63993.0,63984.0,0.0472]
[1724513476018,0.00023449,63994.0,63993.0,0.078098]
[1724513476723,0.00023449,63994.0,63993.0,0.838898]
[1724513477024,0.3608,64013.0,63993.0,1.23726664]
[1724513477211,0.3608,64013.0,64003.0,0.3608]
[1724513477416,0.3608,64013.0,64006.0,0.078082]
[1724513477910,0.3608,64013.0,64003.0,0.36103449]
[1724513478115,0.00023449,64016.0,64011.0,0.3608]
[1724513478315,0.00023449,64016.0,64014.0,0.078072]
[1724513479619,0.00123449,64016.0,64014.0,0.080072]
[1724513479825,0.00223449,64016.0,64014.0,0.080072]
[1724513480221,0.00123449,64016.0,64014.0,0.080072]
[1724513480521,0.00223449,64016.0,64014.0,0.080072]
[1724513489023,0.3608,64038.0,64017.0,0.078068]
[1724513489218,0.36208,64038.0,64036.0,0.078045]
[1724513489730,0.3608,64038.0,64037.0,4e-05]
[1724513490214,0.3618,64038.0,64037.0,4e-05]
[1724513490416,0.3758,64038.0,64037.0,4e-05]
[1724513491021,0.3758,64038.0,64037.0,0.078084]
[1724513491819,0.014,64038.0,64037.0,0.078084]
[1724513492020,0.028,64038.0,64037.0,0.078084]
[1724513492629,0.028,64038.0,64037.0,0.09218539]
[1724513493228,0.011,64038.0,64037.0,0.09218539]
[1724513493424,0.023,64038.0,64037.0,0.09218539]
[1724513494026,0.023,64038.0,64037.0,0.56066539]
[1724513494731,0.3608,64070.0,64038.0,0.546482]
[1724513494928,0.3608,64078.0,64069.0,0.078005]
[1724513495523,0.3608,64078.0,64064.0,0.3608]
[1724513495721,0.077958,64075.0,64065.0,0.00023411]
[1724513495923,0.006,64070.0,64065.0,0.00023411]
[1724513496524,0.077958,64075.0,64065.0,0.00023411]
[1724513497126,0.001,64070.0,64065.0,0.00023411]
[1724513498219,0.001,64070.0,64068.0,0.078006]
[1724513498829,0.3608,64072.0,64068.0,0.078006]
[1724513499227,0.3608,64072.0,64069.0,0.078004]
[1724513499740,0.3608,64072.0,64070.0,0.078004]
[1724513500422,0.00023411,64077.0,64076.0,0.077997]
[1724513501529,0.3608,64089.0,64088.0,0.077982]
[1724513501922,0.3608,64102.0,64087.0,0.22]
[1724513502123,1.78,64101.0,64091.0,0.3608]
[1724513502632,1.78,64101.0,64096.0,0.077972]
[1724513502834,0.36223412,64102.0,64097.0,0.077971]
[1724513503029,0.36103411,64102.0,64090.0,0.00023411]
[1724513503231,0.077978,64092.0,64090.0,0.00023411]
[1724513503829,4e-05,64091.0,64090.0,0.00023411]
[1724513506234,0.00204,64091.0,64090.0,0.00023411]
[1724513506538,0.00304,64091.0,64090.0,0.00023411]
[1724513510445,0.081019,64091.0,64090.0,0.00023411]
[1724513516637,0.081019,64091.0,64090.0,0.00027411]
[1724513517239,0.441819,64091.0,64090.0,0.00027411]
[1724513519641,1.23192,64091.0,64065.0,0.09345666]
[1724513519845,0.3608,64079.0,64067.0,0.095]
[1724513520150,0.077999,64074.0,64073.0,0.07812313]
[1724513520337,0.3608,64079.0,64074.0,0.077999]
[1724513520541,1.78,64078.0,64074.0,0.077999]
[1724513520949,0.3608,64079.0,64075.0,0.007]
[1724513520950,0.077996,64077.0,64075.0,0.007]
[1724513521135,0.077997,64076.0,64075.0,0.007]
[1724513522245,0.3608,64079.0,64075.0,0.021]
[1724513522448,1.78,64078.0,64075.0,0.021]
[1724513522755,1.78,64078.0,64075.0,0.014]
[1724513522953,1.78,64078.0,64074.0,0.007]
[1724513523244,0.001,64076.0,64075.0,0.083998]
[1724513523441,0.001,64076.0,64075.0,0.089998]
[1724513524444,0.00232,64078.0,64075.0,0.089998]
[1724513524445,0.002,64078.0,64077.0,0.077996]
[1724513525149,0.002,64078.0,64077.0,0.078036]
[1724513525550,0.002,64078.0,64077.0,0.438836]
[1724513525748,0.002,64078.0,64077.0,0.4854764]
[1724513526045,0.002,64078.0,64077.0,0.4854763]
[1724513526448,0.001,64078.0,64077.0,0.438836]
[1724513526752,0.00023411,64082.0,64081.0,0.077991]
[1724513527653,0.00023411,64082.0,64081.0,0.078031]
[1724513528146,0.00023411,64082.0,64081.0,0.1246934]
[1724513528350,0.00023411,64082.0,64081.0,0.078031]
[1724513528545,0.00023411,64082.0,64081.0,0.127331]
[1724513529638,0.00023411,64082.0,64081.0,0.00104]
[1724513529840,0.06224811,64082.0,64081.0,0.00104]
[1724513530267,0.00023411,64082.0,64081.0,0.00104]
[1724513530445,0.07822411,64082.0,64081.0,0.00104]
[1724513530848,0.07822411,64082.0,64073.0,0.07812313]
[1724513530849,1.02437411,64082.0,64073.0,0.00012313]
[1724513531041,0.42292499,64074.0,64073.0,0.00012313]
[1724513531345,0.50092399,64074.0,64073.0,0.00012313]
[1724513531655,2.2963565,64074.0,64073.0,0.00012313]
[1724513532248,2.218839,64074.0,64073.0,0.00012313]
[1724513532553,3.087039,64074.0,64073.0,0.00012313]
[1724513532757,3.087039,64074.0,64060.0,0.04667491]
[1724513532758,0.078001,64073.0,64060.0,0.04667491]
[1724513533048,0.438814,64062.0,64057.0,0.0914]
[1724513533254,0.04656145,64060.0,64057.0,0.0914]
[1724513533658,0.04668458,64059.0,64057.0,0.0914]
[1724513533842,4e-05,64058.0,64057.0,0.0914]
[1724513534951,4e-05,64058.0,64057.0,0.0974]
[1724513536358,4e-05,64058.0,64057.0,0.1034]
[1724513536555,0.00104,64058.0,64057.0,0.1044]
[1724513536952,0.00104,64058.0,64057.0,0.0984]
[1724513537156,0.00204,64058.0,64057.0,0.1034]
[1724513538450,0.00104,64058.0,64057.0,0.17542]
[1724513538761,0.00204,64058.0,64057.0,0.18142]
[1724513539360,0.00204,64058.0,64057.0,0.20580991]
[1724513540056,0.00104,64058.0,64057.0,0.19980991]
[1724513540250,0.00204,64058.0,64057.0,0.20680991]
[1724513540453,0.00204,64058.0,64057.0,0.20880991]
[1724513540661,0.00204,64058.0,64057.0,0.25538109]
[1724513541156,0.00023411,64065.0,64064.0,0.078011]
[1724513541357,0.40736145,64081.0,64077.0,0.077996]
[1724513541554,0.3608,64081.0,64080.0,0.077992]
[1724513541969,0.04656145,64092.0,64078.0,0.5808]
[1724513542157,0.04656145,64092.0,64086.0,0.077984]
[1724513542460,0.04656145,64092.0,64078.0,0.5808]
[1724513542461,0.077975,64094.0,64087.0,0.077983]
[1724513543053,0.04656145,64094.0,64083.0,0.00023411]
[1724513543260,0.40751928,64095.0,64093.0,4e-05]
[1724513544057,0.36103411,64095.0,64094.0,4e-05]
[1724513544865,0.42051928,64095.0,64094.0,4e-05]
[1724513545254,0.37403411,64095.0,64094.0,4e-05]
[1724513545658,0.37503411,64095.0,64094.0,0.00104]
[1724513546164,0.38703411,64095.0,64094.0,0.00104]
[1724513546865,0.37503411,64095.0,64094.0,0.00104]
[1724513547064,0.38803411,64095.0,64094.0,0.00204]
[1724513547768,0.85607411,64095.0,64094.0,0.00204]
[1724513548462,2.63607411,64095.0,64094.0,0.00204]
[1724513548655,2.16803411,64095.0,64094.0,0.00204]
[1724513548860,2.23012118,64095.0,64094.0,0.00204]
[1724513549059,0.077987,64084.0,64074.0,0.0465726]
[1724513549364,0.438787,64084.0,64073.0,0.0988]
[1724513549763,0.438827,64084.0,64073.0,0.0493]
[1724513550469,0.439827,64084.0,64073.0,0.0493]
[1724513551061,0.441827,64084.0,64073.0,0.0493]
[1724513551557,0.441827,64084.0,64070.0,0.21848]
[1724513551558,1.59276,64084.0,64070.0,0.21848]
[1724513551762,0.3608,64077.0,64069.0,0.0471]
[1724513552467,4e-05,64070.0,64069.0,0.0471]
[1724513553772,4e-05,64070.0,64069.0,0.14949046]
[1724513554065,0.00104,64070.0,64069.0,0.16849046]
[1724513554772,0.00204,64070.0,64069.0,0.16849046]
[1724513555272,0.00204,64070.0,64069.0,0.16848858]
[1724513555664,0.00104,64070.0,64069.0,0.15648858]
[1724513555862,0.00204,64070.0,64069.0,0.16948858]
[1724513557370,0.00204,64070.0,64069.0,0.16948869]
[1724513558569,0.00204,64070.0,64069.0,0.145105]
[1724513558964,0.00204,64070.0,64069.0,0.169489]
[1724513560670,0.00204,64070.0,64069.0,0.145105]
[1724513560867,0.00204,64070.0,64069.0,0.16948859]
[1724513561270,0.00204,64070.0,64069.0,0.21605672]
[1724513561574,0.00204,64070.0,64069.0,0.19167241]
[1724513561768,0.00204,64070.0,64069.0,0.145105]
[1724513562267,0.00204,64070.0,64069.0,0.16948868]
[1724513563770,0.00204,64070.0,64069.0,0.19167241]
[1724513563975,0.00204,64070.0,64069.0,0.21605599]
[1724513564176,0.00204,64070.0,64069.0,0.16948858]
[1724513564373,0.00204,64070.0,64069.0,0.21605599]
[1724513565271,0.00204,64070.0,64069.0,0.16948858]
[1724513566070,0.00204,64070.0,64069.0,0.145105]
[1724513566579,0.00204,64070.0,64069.0,0.16948831]
[1724513567273,0.00204,64070.0,64069.0,0.23149011]
[1724513567977,0.00204,64070.0,64069.0,0.1694883]
[1724513568176,0.00204,64070.0,64069.0,0.23149011]
[1724513568374,0.00204,64070.0,64069.0,0.1694883]
[1724513569480,0.00204,64070.0,64069.0,0.23172204]
[1724513570373,0.00204,64070.0,64069.0,0.1694883]
[1724513570570,0.00204,64070.0,64069.0,0.145105]
[1724513570783,0.00204,64070.0,64069.0,0.16948866]
[1724513573374,0.00204,64070.0,64069.0,0.16948868]
[1724513574781,0.00204,64070.0,64069.0,0.23178757]
[1724513574974,0.04850994,64070.0,64069.0,0.16948868]
[1724513576081,0.080044,64070.0,64069.0,0.02]
[1724513576778,0.10533343,64070.0,64069.0,0.02]
[1724513577182,0.15776228,64070.0,64069.0,0.02]
[1724513577986,0.15775459,64070.0,64069.0,0.02]
[1724513578380,0.62599459,64070.0,64069.0,0.02]
[1724513578978,0.70399859,64070.0,64069.0,0.02]
[1724513579283,0.626288,64070.0,64069.0,0.02]
[1724513579478,0.65157776,64070.0,64069.0,0.02]
[1724513580281,0.626288,64070.0,64069.0,0.02]
[1724513580583,0.62596727,64070.0,64069.0,0.02]
[1724513580780,0.080044,64070.0,64069.0,0.02]
[1724513583490,0.00204,64070.0,64069.0,0.02]
[1724513583689,0.00204,64070.0,64069.0,0.14474089]
[1724513583887,0.00204,64070.0,64069.0,0.12239032]
[1724513584191,0.00204,64070.0,64069.0,0.16908143]
[1724513584484,0.00204,64070.0,64069.0,0.12239032]
[1724513584684,0.00204,64070.0,64069.0,0.16908152]
[1724513584884,0.04863342,64070.0,64069.0,0.12239032]
[1724513585494,0.04863442,64070.0,64069.0,0.12239032]
[1724513586287,0.00204,64070.0,64069.0,0.16908122]
[1724513587887,0.00204,64070.0,64069.0,0.16908501]
[1724513588290,0.00204,64070.0,64069.0,0.14469969]
[1724513588490,0.00204,64070.0,64069.0,0.16908621]
[1724513588892,0.06415992,64070.0,64069.0,0.12239152]
[1724513590986,0.00204,64070.0,64069.0,0.12239152]
[1724513591193,0.00204,64070.0,64069.0,0.04438652]
[1724513591584,0.00204,64070.0,64069.0,0.02]
[1724513591787,0.00204,64070.0,64069.0,0.04438863]
[1724513592990,0.080044,64070.0,64069.0,0.04438863]
[1724513594699,0.14215676,64070.0,64069.0,0.04438863]
[1724513594896,0.14215676,64070.0,64069.0,0.02]
[1724513595194,0.14215676,64070.0,64069.0,0.04438818]
[1724513595386,0.14215676,64070.0,64069.0,0.02]
[1724513595587,0.14215676,64070.0,64069.0,0.098005]
[1724513595588,0.00204,64070.0,64069.0,0.098005]
[1724513595787,0.00204,64070.0,64069.0,0.1223932]
[1724513597196,0.00204,64070.0,64069.0,0.16908789]
[1724513597197,0.04862708,64070.0,64069.0,0.16908789]
[1724513598297,0.04862708,64070.0,64069.0,0.1223932]
[1724513598989,0.00204,64070.0,64069.0,0.1223932]
[1724513599801,0.00204,64070.0,64069.0,0.4831932]
[1724513600000,0.00204,64070.0,64069.0,0.54549209]
[1724513600407,0.00204,64070.0,64069.0,0.52110389]
[1724513600701,0.00204,64070.0,64069.0,0.54548793]
[1724513601096,0.00204,64070.0,64069.0,0.18468793]
[1724513601294,0.04862708,64070.0,64069.0,0.12238904]
[1724513601493,0.00204,64070.0,64069.0,0.12238904]
[1724513601997,0.00204,64070.0,64069.0,0.16911203]
[1724513602590,0.06415276,64070.0,64069.0,0.16911203]
[1724513604499,0.06415276,64070.0,64069.0,0.12238904]
[1724513604695,0.06415276,64070.0,64069.0,0.14474696]
[1724513604899,0.06415276,64070.0,64069.0,0.16913413]
[1724513605313,0.00204,64070.0,64069.0,0.16913413]
[1724513605605,0.00204,64070.0,64069.0,0.12239217]
[1724513608198,0.00204,64070.0,64069.0,0.12239337]
[1724513608789,0.00204,64070.0,64069.0,0.146781]
[1724513608991,0.00204,64070.0,64069.0,0.12239263]
[1724513611206,0.00204,64070.0,64069.0,0.21739263]
[1724513611715,0.00204,64070.0,64069.0,0.21739246]
[1724513612099,0.06422457,64070.0,64069.0,0.21739246]
[1724513612301,0.00204,64070.0,64069.0,0.21739246]
[1724513612513,0.06422457,64070.0,64069.0,0.21739246]
[1724513613509,0.00204,64070.0,64069.0,0.21739246]
[1724513614405,0.04868662,64070.0,64069.0,0.21739246]
[1724513615509,0.00204,64070.0,64069.0,0.21739246]
[1724513615810,0.00204,64070.0,64069.0,0.57819246]
[1724513617612,0.00204,64070.0,64069.0,1.04643246]
[1724513619115,0.00204,64070.0,64069.0,1.44643246]
[1724513620409,0.04868662,64070.0,64069.0,1.44643246]
[1724513620606,0.00204,64070.0,64069.0,1.44643246]
[1724513620808,0.00204,64070.0,64069.0,1.022045]
[1724513621002,0.00204,64070.0,64069.0,1.44642934]
[1724513621310,0.04868662,64070.0,64069.0,1.04642928]
[1724513621510,0.04868662,64070.0,64069.0,1.44642928]
[1724513621706,0.04868662,64070.0,64069.0,1.04642928]
[1724513621911,0.00204,64070.0,64069.0,1.04642928]
[1724513623805,0.00204,64070.0,64069.0,0.68562928]
[1724513624015,0.00204,64070.0,64069.0,0.661245]
[1724513624217,0.00204,64070.0,64069.0,0.68562928]
[1724513624515,0.00204,64070.0,64069.0,0.57818928]
[1724513627314,0.00204,64070.0,64069.0,0.553805]
[1724513627611,0.00204,64070.0,64069.0,0.57818988]
[1724513630427,0.00204,64070.0,64069.0,0.66818988]